[Event "BL 2016-17"]
[Site "St. Veit/Glan"]
[Date "2017.03.26"]
[Round "8"]
[White "Anistratov, Dmitriy"]
[Black "Burschowsky, Matthias"]
[Result "1/2-1/2"]
[ECO "A04"]
[WhiteElo "2292"]
[BlackElo "2192"]
[Annotator "ChessBase"]
[PlyCount "137"]
[EventDate "2017.??.??"]
[EventType "team-tourn"]
[EventCountry "AUT"]
[SourceTitle "playchess.com"]
[Source "ChessBase"]
[SourceQuality "1"]
[WhiteTeam "Götzis"]
[BlackTeam "Hohenems"]
[TimeControl "40/5400+30:1800+30"]

1. Nf3 {[%emt 0:00:00]} c5 {[%emt 0:00:56]} 2. c3 {[%emt 0:01:01]} Nf6 {[%emt 0:01:31]} 3. d3 {[%emt 0:00:21]} g6 {[%emt 0:00:47]} 4. e4 {[%emt 0:00:15]} d6 {[%emt 0:00:35]} 5. Be2 {[%emt 0:00:38]} Bg7 {[%emt 0:00:24]} 6. O-O {[%emt 0:00:30]} O-O {[%emt 0:00:28]} 7. Nbd2 {[%emt 0:01:53]} Nc6 {[%emt 0:01:16]} 8. a4 {[%emt 0:01:38]} a6 {[%emt 0:03:42]} 9. Re1 {[%emt 0:06:55]} Rb8 {[%emt 0:13:45]} 10. Bf1 {[%emt 0:01:34]} Nd7 {[%emt 0:05:42]} 11. Nb3 {[%emt 0:04:46]} b5 {[%emt 0:09:55]} 12. axb5 {[%emt 0:09:26]} axb5 {[%emt 0:00:23]} 13. Bg5 {[%emt 0:08:03]} b4 {[%emt 0:14:51]} 14. Qc2 {[%emt 0:06:54]} Qb6 {[%emt 0:06:50]} 15. Nfd2 {[%emt 0:05:56]} h6 {[%emt 0:04:07]} 16. Be3 {[%emt 0:02:39]} Ba6 {[%emt 0:03:02]} 17. Ra2 {[%emt 0:08:29]} Ra8 {[%emt 0:03:35]} 18. Rea1 {[%emt 0:00:49]} Bb7 {[%emt 0:00:39]} 19. Nc4 {[%emt 0:00:36]} Qc7 {[%emt 0:01:06]} 20. Nba5 {[%emt 0:09:48]} Nxa5 {[%emt 0:01:43]} 21. Nxa5 {[%emt 0:00:20]} bxc3 {[%emt 0:00:51]} 22. bxc3 {[%emt 0:00:09]} Rfb8 {[%emt 0:02:03]} 23. Nxb7 {[%emt 0:03:22]} Rxa2 {[%emt 0:00:26]} 24. Rxa2 {[%emt 0:00:37]} Qxb7 {[%emt 0:00:08]} 25. d4 {[%emt 0:02:01]} Kh7 {[%emt 0:00:57]} 26. f3 {[%emt 0:04:38]} cxd4 {[%emt 0:06:26]} 27. cxd4 {[%emt 0:00:09]} Qb6 {[%emt 0:00:45]} 28. Qd2 {[%emt 0:08:05]} Qb3 {[%emt 0:00:39]} 29. Rc2 {[%emt 0:02:20]} Qa4 {[%emt 0:01:58]} 30. Ra2 {[%emt 0:01:16]} Qb3 {[%emt 0:00:17]} 31. Rc2 {[%emt 0:00:52]} Qa4 {[%emt 0:00:27]} 32. Rc4 {[%emt 0:00:18]} Qa1 {[%emt 0:00:55]} 33. Rc1 {[%emt 0:03:02]} Rb1 {[%emt 0:02:24]} 34. Rxb1 {[%emt 0:00:05]} Qxb1 {[%emt 0:00:02]} 35. Kf2 {[%emt 0:00:33]} Qa1 {[%emt 0:03:16]} 36. Bc4 {[%emt 0:01:41]} e6 {[%emt 0:02:37]} 37. Bf1 {[%emt 0:00:40]} Qa4 {[%emt 0:00:45]} 38. Qb2 {[%emt 0:01:58]} Qa7 {[%emt 0:05:56]} 39. Qb4 {[%emt 0:01:35]} Qc7 {[%emt 0:00:39]} 40. Qc4 {[%emt 0:00:00]} Qxc4 {[%emt 0:02:34]} 41. Bxc4 {[%emt 0:02:09]} Nb6 {[%emt 0:02:22]} 42. Bb5 {[%emt 0:07:59]} d5 {[%emt 0:01:56]} 43. Ke2 {[%emt 0:01:39]} Kg8 {[%emt 0:18:12]} 44. Kd3 {[%emt 0:00:24]} g5 {[%emt 0:00:33]} 45. Bd2 {[%emt 0:01:12]} Bf8 {[%emt 0:01:07]} 46. Ba5 {[%emt 0:01:18]} dxe4+ {[%emt 0:00:22]} 47. fxe4 {[%emt 0:00:11]} Nc8 {[%emt 0:00:10]} 48. Ba6 {[%emt 0:04:31]} Ne7 {[%emt 0:00:19]} 49. Bc4 {[%emt 0:04:32]} Nc8 {[%emt 0:02:25]} 50. Bb5 {[%emt 0:04:00]} Bd6 {[%emt 0:00:49]} 51. g3 {[%emt 0:03:29]} h5 {[%emt 0:01:04]} 52. Ke3 {[%emt 0:03:11]} Kg7 {[%emt 0:01:01]} 53. d5 {[%emt 0:01:23]} exd5 {[%emt 0:00:21]} 54. exd5 {[%emt 0:00:49]} f5 {[%emt 0:02:22]} 55. Bc3+ {[%emt 0:00:43]} Kf7 {[%emt 0:00:43]} 56. Bd7 {[%emt 0:01:17]} Ne7 {[%emt 0:00:02]} 57. Be6+ {[%emt 0:00:08]} Kg6 {[%emt 0:00:04]} 58. Kf2 {[%emt 0:01:35]} f4 {[%emt 0:03:53]} 59. gxf4 {[%emt 0:00:45]} gxf4 {[%emt 0:00:01]} 60. Kf3 {[%emt 0:00:29]} Nf5 {[%emt 0:00:16]} 61. Ke4 {[%emt 0:00:52]} Ne3 {[%emt 0:01:06]} 62. Kf3 {[%emt 0:00:57]} Nf5 {[%emt 0:00:37]} 63. h3 {[%emt 0:00:53]} Kg5 {[%emt 0:01:02]} 64. Be1 {[%emt 0:00:45]} Kf6 {[%emt 0:00:47]} 65. Bf2 {[%emt 0:00:19]} Ng7 {[%emt 0:00:54]} 66. Bd4+ {[%emt 0:00:48]} Be5 {[%emt 0:00:06]} 67. Bxe5+ {[%emt 0:00:21]} Kxe5 {[%emt 0:00:05]} 68. Bf7 {[%emt 0:00:16]} h4 {[%emt 0:00:47]} 69. Be6 {[%emt 0:00:34]} 1/2-1/2

[Event "BL 2016-17"]
[Site "Germany"]
[Date "2017.02.19"]
[Round "8"]
[White "Eichler, Christoph"]
[Black "Carlstedt, Jonathan"]
[Result "1-0"]
[ECO "E19"]
[WhiteElo "2290"]
[BlackElo "2424"]
[Annotator "TA"]
[PlyCount "101"]
[EventDate "2017.??.??"]
[EventType "team-tourn"]
[EventCountry "GER"]
[SourceTitle "playchess.com"]
[Source "ChessBase"]
[SourceQuality "1"]
[WhiteTeam "Zugzwang München"]
[BlackTeam "Hamburger SK"]
[TimeControl "40/6000+30:3000+30"]

1. Nf3 {[%emt 0:00:00]} Nf6 {[%emt 0:04:01]} 2. c4 {[%emt 0:00:00]} e6 {[%emt 0:00:31]} 3. g3 {[%emt 0:00:34]} a6 {[%emt 0:01:16]} 4. Bg2 {[%emt 0:04:44]} b5 {[%emt 0:00:45]} 5. b3 {[%emt 0:07:28]} Bb7 {[%emt 0:01:17]} 6. O-O {[%emt 0:00:29]} Be7 {[%emt 0:02:38]} 7. Nc3 {[%emt 0:11:45]} b4 {[%emt 0:00:46]} 8. Na4 {[%emt 0:00:07]} d6 {[%emt 0:00:49]} 9. Bb2 {[%emt 0:02:55]} Nbd7 {[%emt 0:00:26]} 10. d3 {[%emt 0:02:01]} c5 {[%emt 0:07:32]} 11. e4 {[%emt 0:10:10]} Qc7 {[%emt 0:05:45]} 12. Qe2 {[%emt 0:01:02]} O-O {[%emt 0:08:55]} 13. e5 {[%emt 0:06:59]} dxe5 {[%emt 0:02:47]} 14. Nxe5 {[%emt 0:00:06]} Bxg2 {[%emt 0:00:48]} 15. Kxg2 {[%emt 0:00:03]} Nxe5 {[%emt 0:00:44]} 16. Bxe5 {[%emt 0:01:17]} Qc6+ {[%emt 0:01:27]} 17. Qf3 {[%emt 0:03:49]} Qxf3+ {[%emt 0:00:39]} 18. Kxf3 {[%emt 0:00:03]} Nd7 {[%emt 0:00:18]} 19. Bf4 {[%emt 0:06:29]} e5 {[%emt 0:02:06]} 20. Be3 {[%emt 0:03:36]} f5 {[%emt 0:01:05]} 21. Ke2 {[%emt 0:04:44]} f4 {[%emt 0:01:37]} 22. Bc1 {[%emt 0:02:13]} f3+ {[%emt 0:06:31]} 23. Kd1 {[%emt 0:01:32]} e4 {[%emt 0:00:42]} 24. dxe4 {[%emt 0:01:19]} Nf6 {[%emt 0:01:15]} 25. Kc2 {[%emt 0:02:50]} Nxe4 {[%emt 0:02:31]} 26. Be3 {[%emt 0:03:00]} Rae8 {[%emt 0:04:39]} 27. Rad1 {[%emt 0:01:09]} Bg5 {[%emt 0:09:44]} 28. Bxg5 {[%emt 0:04:03]} Nxg5 {[%emt 0:00:07]} 29. Nxc5 {[%emt 0:00:33]} Re2+ $16 {[%emt 0:02:43]} 30. Rd2 {[%emt 0:01:11]} Rfe8 {[%emt 0:14:44]} 31. Rfd1 {[%emt 0:04:19]} a5 {[%emt 0:00:49]} 32. h4 {[%emt 0:03:26]} Nh3 {[%emt 0:02:59]} 33. Nd3 {[%emt 0:00:16]} Rxd2+ {[%emt 0:02:54]} 34. Rxd2 {[%emt 0:00:18]} Ng1 {[%emt 0:00:11]} 35. Nf4 {[%emt 0:04:30]} Ne2 {[%emt 0:03:44]} 36. Nd5 {[%emt 0:02:15]} Re5 {[%emt 0:03:43]} 37. Rd3 {[%emt 0:03:00]} h6 {[%emt 0:00:56]} 38. Kd2 {[%emt 0:04:07]} Ng1 {[%emt 0:03:07]} 39. Re3 {[%emt 0:01:21]} Rxe3 {[%emt 0:04:01]} 40. Kxe3 {[%emt 0:01:39]} g5 {[%emt 0:50:07]} 41. hxg5 {[%emt 0:53:29]} hxg5 {[%emt 0:00:18]} 42. Ne7+ {[%emt 0:02:38]} Kf7 {[%emt 0:01:02]} 43. Nc6 {[%emt 0:00:09]} Kf6 {[%emt 0:06:14]} 44. Nxa5 {[%emt 0:01:41]} Kf5 {[%emt 0:00:08]} 45. Nc6 {[%emt 0:00:23]} g4 {[%emt 0:00:18]} 46. Nxb4 {[%emt 0:00:30]} Ne2 {[%emt 0:00:06]} 47. Nd3 {[%emt 0:01:42]} Nc3 {[%emt 0:00:47]} 48. a4 {[%emt 0:00:15]} Ne4 {[%emt 0:00:05]} 49. a5 {[%emt 0:00:29]} Nd6 {[%emt 0:00:24]} 50. a6 {[%emt 0:00:22]} Nc8 {[%emt 0:00:07]} 51. b4 {[%emt 0:00:52] Ke4+ Kxe4} 1-0

[Event "BL 2016-17"]
[Site "St. Veit/Glan"]
[Date "2017.03.26"]
[Round "8"]
[White "Herbrechtsmeier, Christof"]
[Black "Mesaros, Florian"]
[Result "1-0"]
[ECO "C54"]
[WhiteElo "2228"]
[BlackElo "2382"]
[Annotator "NA"]
[PlyCount "87"]
[EventDate "2017.??.??"]
[EventType "team-tourn"]
[EventCountry "AUT"]
[SourceTitle "playchess.com"]
[Source "ChessBase"]
[SourceQuality "1"]
[WhiteTeam "Bregenz"]
[BlackTeam "Wulkaprodersdorf"]
[TimeControl "40/5400+30:1800+30"]

1. e4 {[%emt 0:00:00]} e5 {[%emt 0:00:08]} 2. Nf3 {[%emt 0:00:00]} Nc6 {[%emt 0:00:07]} 3. Bc4 {[%emt 0:00:00]} Bc5 {[%emt 0:00:08]} 4. c3 {[%emt 0:00:04]} Nf6 {[%emt 0:00:10]} 5. d4 {[%emt 0:00:05]} exd4 {[%emt 0:00:07]} 6. cxd4 {[%emt 0:00:06]} Bb4+ {[%emt 0:00:06]} 7. Bd2 {[%emt 0:00:06]} Nxe4 {[%emt 0:00:56]} 8. Bxb4 {[%emt 0:00:09]} Nxb4 {[%emt 0:00:04]} 9. Bxf7+ {[%emt 0:00:10]} Kxf7 {[%emt 0:00:10]} 10. Qb3+ {[%emt 0:00:06] C54: Giuoco Piano: 4 c3 Nf6, main lines with 5 d4 and 5 d3} Kf8 {[%emt 0:00:27]} 11. Qxb4+ {[%emt 0:00:07]} Qe7 {[%emt 0:00:05]} 12. Qxe7+ {[%emt 0:00:12]} Kxe7 {[%emt 0:00:07]} 13. Nc3 {[%emt 0:00:48]} (13. O-O Kd8 14. Re1 Nf6 15. Nc3 d6 16. Ng5 Rf8 17. Re3 h6 18. Nge4 Nxe4 19. Rxe4 Bf5 20. Re3 Kd7 21. Rae1 Rae8 {½-½ (21) Pert,N (2570)-Adams,M (2727) Bournemouth 2016}) 13... Nxc3 {[%emt 0:00:11]} 14. bxc3 {[%emt 0:00:06]} d6 {[%emt 0:00:07]} 15. Nd2 {[%emt 0:01:31]} Be6 {[%emt 0:10:11]} 16. Nf1 {[%emt 0:01:15]} a5 $146 {[%emt 0:07:00]} (16... c5 17. Ne3 b5 {½-½ (70) Wang,Y (2422)-Zhao,J (2578) Zhongshan 2014}) 17. Ne3 {[%emt 0:00:57]} b5 18. a3 {[%emt 0:01:12]} Kd7 {[%emt 0:21:45]} 19. d5 {[%emt 0:07:47]} Bf7 {[%emt 0:02:17]} 20. Kd2 {[%emt 0:08:46]} Bg6 {[%emt 0:03:09]} 21. Rhd1 {[%emt 0:04:01]} Rhf8 {[%emt 0:00:22]} 22. Ke1 {[%emt 0:00:19]} Rf4 {[%emt 0:03:20]} 23. Rd4 {[%emt 0:09:21]} Raf8 {[%emt 0:16:42]} 24. Ra2 {[%emt 0:01:54]} Rxd4 {[%emt 0:01:34]} 25. cxd4 {[%emt 0:00:06]} Rf4 {[%emt 0:06:41]} 26. Rd2 {[%emt 0:03:20]} c5 {[%emt 0:02:33]} 27. dxc6+ {[%emt 0:03:58]} Kxc6 {[%emt 0:00:34]} 28. Kd1 {[%emt 0:04:20]} b4 {[%emt 0:02:49]} 29. a4 {[%emt 0:04:41]} Rf8 {[%emt 0:03:47]} 30. Kc1 {[%emt 0:15:21]} Rc8 {[%emt 0:08:27]} 31. Kb2 {[%emt 0:00:15]} Kb7 {[%emt 0:00:53]} 32. d5 {[%emt 0:10:18]} Kb6 {[%emt 0:02:20]} 33. Rd4 {[%emt 0:01:28]} Rc3 {[%emt 0:01:07]} 34. Rc4 {[%emt 0:00:16]} Rd3 {[%emt 0:04:46]} 35. Rc6+ {[%emt 0:00:34]} Kb7 {[%emt 0:00:09]} 36. Rxd6 {[%emt 0:01:09]} Rd2+ {[%emt 0:01:10]} 37. Kb3 {[%emt 0:02:46]} Rxf2 {[%emt 0:00:27]} 38. Rd7+ {[%emt 0:01:18]} Kb6 {[%emt 0:01:00]} 39. Rxg7 {[%emt 0:01:16]} Bb1 {[%emt 0:02:52]} 40. Nc4+ {[%emt 0:00:00]} Ka6 {[%emt 0:00:18]} 41. Nb2 {[%emt 0:14:56]} Bc2+ {[%emt 0:08:19]} 42. Kc4 {[%emt 0:02:31]} Bg6 {[%emt 0:01:14]} 43. Kb3 $17 {[%emt 0:03:19]} Rc2 {[%emt 0:10:14]} 44. Rxg6+ {[%emt 0:00:53]} 1-0

[Event "BL 2016-17"]
[Site "St. Veit/Glan"]
[Date "2017.03.26"]
[Round "8"]
[White "Gelbenegger, Patrick"]
[Black "Gerhold, Michael"]
[Result "0-1"]
[ECO "C03"]
[WhiteElo "2054"]
[BlackElo "2221"]
[Annotator "NA"]
[PlyCount "122"]
[EventDate "2017.??.??"]
[EventType "team-tourn"]
[EventCountry "AUT"]
[SourceTitle "playchess.com"]
[Source "ChessBase"]
[SourceQuality "1"]
[WhiteTeam "St. Valentin"]
[BlackTeam "Absam"]
[TimeControl "40/5400+30:1800+30"]

1. e4 {[%emt 0:00:00]} e6 {[%emt 0:00:04]} 2. d4 {[%emt 0:00:00]} d5 {[%emt 0:00:08]} 3. Nd2 {[%emt 0:00:00]} a6 {[%emt 0:00:38]} 4. c3 {[%emt 0:06:02]} c5 {[%emt 0:00:06]} 5. exd5 {[%emt 0:02:57]} exd5 {[%emt 0:00:05]} 6. Ngf3 {[%emt 0:01:06]} Nf6 {[%emt 0:00:36] C08: French Tarrasch: 3...c5 4 exd5 exd5 sidelines} (6... Nc6 7. dxc5 Bxc5 8. Nb3 Bb6 9. Nfd4 Nf6 10. Bg5 O-O 11. Be2 h6 12. Bh4 g5 13. Bg3 Ne4 14. f3 Nxg3 15. hxg3 {0-1 (51) Dvalishvili,P (2450)-Grachev,B (2668) Moscow 2010}) 7. Be2 {[%emt 0:07:03]} Nc6 {[%emt 0:00:19]} 8. O-O {[%emt 0:06:32]} cxd4 {[%emt 0:02:55]} 9. Nxd4 {[%emt 0:00:32]} Nxd4 {[%emt 0:00:05]} 10. cxd4 {[%emt 0:00:11]} Bd6 {[%emt 0:00:23]} 11. Bf3 {[%emt 0:06:15]} O-O {[%emt 0:01:20]} 12. Re1 {[%emt 0:00:36]} Be6 $146 {[%emt 0:10:05]} (12... Qb6 13. Nf1 Bf5 14. Bg5 {0-1 (46) Bakalarz,L-Vicinic,P (2315) Naleczow 1986}) 13. Qb3 {[%emt 0:07:03]} Qd7 {[%emt 0:03:35]} 14. Nf1 {[%emt 0:03:06]} Rac8 {[%emt 0:17:02]} 15. Ne3 {[%emt 0:03:32]} Bb8 {[%emt 0:03:33]} 16. Bd2 {[%emt 0:08:38]} Ba7 {[%emt 0:03:50]} 17. Bb4 {[%emt 0:04:37]} Rfe8 {[%emt 0:05:33]} 18. Qd3 {[%emt 0:02:38]} h6 {[%emt 0:05:37]} 19. Rac1 {[%emt 0:06:21]} Rc6 {[%emt 0:07:59]} 20. Rxc6 {[%emt 0:06:26]} Qxc6 {[%emt 0:00:29]} 21. Bd1 {[%emt 0:13:57]} Rc8 {[%emt 0:05:19]} 22. Bb3 {[%emt 0:03:14]} Qd7 {[%emt 0:00:51]} 23. f3 {[%emt 0:01:03]} Nh5 {[%emt 0:01:38]} 24. Bc2 {[%emt 0:02:45]} g6 {[%emt 0:00:16]} 25. g3 {[%emt 0:00:38]} Ng7 {[%emt 0:01:43]} 26. Bb3 {[%emt 0:00:51]} h5 {[%emt 0:02:27]} 27. Qd2 {[%emt 0:01:00]} Qd8 {[%emt 0:02:46]} 28. Kg2 {[%emt 0:01:12]} h4 {[%emt 0:03:19]} 29. Bxd5 {[%emt 0:05:24]} Bxd5 {[%emt 0:00:42]} 30. Be7 {[%emt 0:00:44]} h3+ {[%emt 0:06:42]} 31. Kg1 {[%emt 0:00:17]} Qxe7 {[%emt 0:01:10]} 32. Nxd5 {[%emt 0:00:26]} Qd8 {[%emt 0:04:22]} 33. Ne7+ {[%emt 0:00:38]} Kh7 {[%emt 0:00:37]} 34. Nxc8 {[%emt 0:00:06]} Qxc8 {[%emt 0:00:06]} 35. Kh1 {[%emt 0:00:16]} Qf5 {[%emt 0:01:42]} 36. Re3 {[%emt 0:01:16]} Ne6 {[%emt 0:00:31]} 37. Rd3 {[%emt 0:00:29]} Nxd4 {[%emt 0:00:52]} 38. Qd1 {[%emt 0:00:22]} g5 {[%emt 0:03:07]} 39. g4 {[%emt 0:00:37]} Qe5 {[%emt 0:01:27]} 40. Qf1 {[%emt 0:00:00]} Kg7 {[%emt 0:00:26]} 41. Rd1 {[%emt 0:05:43]} Ne6 {[%emt 0:06:33]} 42. Qxh3 {[%emt 0:01:49]} Nf4 {[%emt 0:01:13]} ({Not} 42... Qxb2 43. Qg2 Qc3 44. Qf1 $19) 43. Qf1 {[%emt 0:00:13]} Qxb2 {[%emt 0:00:09]} 44. Rb1 {[%emt 0:00:59]} Qxa2 {[%emt 0:01:23]} 45. Rxb7 {[%emt 0:00:52]} Bd4 {[%emt 0:03:02]} 46. Rb4 {[%emt 0:02:01]} Ne6 {[%emt 0:00:51]} 47. Rb1 {[%emt 0:02:49]} Be5 {[%emt 0:01:51]} 48. Qg1 {[%emt 0:01:54]} Qe2 {[%emt 0:02:33]} 49. Qg2 {[%emt 0:00:38]} Qd3 {[%emt 0:03:55]} 50. Re1 $19 {[%emt 0:01:12]} Bc3 {[%emt 0:01:52]} 51. Rf1 {[%emt 0:02:16]} Nf4 {[%emt 0:01:06]} 52. Qf2 {[%emt 0:01:04]} Bd4 {[%emt 0:00:18]} 53. Qe1 {[%emt 0:00:43]} Qc2 {[%emt 0:00:16]} 54. Qg3 {[%emt 0:00:37]} a5 {[%emt 0:04:00]} 55. h4 {[%emt 0:01:34]} Qd3 {[%emt 0:03:59]} 56. Re1 {[%emt 0:01:40]} Bc3 {[%emt 0:00:41]} 57. Re8 {[%emt 0:02:48]} Qd1+ {[%emt 0:02:21]} 58. Kh2 {[%emt 0:00:16]} Qd2+ {[%emt 0:00:16]} 59. Kh1 {[%emt 0:00:36]} gxh4 {[%emt 0:00:11]} 60. Qg1 {[%emt 0:01:08]} Bd4 {[%emt 0:02:35]} 61. Qf1 {[%emt 0:01:38]} h3 {[%emt 0:00:16]} 0-1

[Event "BL 2016-17"]
[Site "Germany"]
[Date "2017.02.19"]
[Round "8.5"]
[White "Commercon, Simon"]
[Black "Kolbus, Dietmar"]
[Result "1/2-1/2"]
[ECO "D78"]
[WhiteElo "2290"]
[BlackElo "2308"]
[Annotator "TA RC"]
[PlyCount "101"]
[EventDate "2017.??.??"]
[EventType "team-tourn"]
[EventCountry "GER"]
[SourceTitle "playchess.com"]
[Source "ChessBase"]
[SourceQuality "1"]
[WhiteTeam "Speyer-Schwegenheim"]
[BlackTeam "SG Trier"]
[TimeControl "40/6000+30:3000+30"]

1. d4 {[%emt 0:00:30]} Nf6 {[%emt 0:01:00]} 2. g3 {[%emt 0:00:00]} g6 {[%emt 0:00:30]} 3. Bg2 {[%emt 0:00:00]} d5 {[%emt 0:00:30]} 4. Nf3 {[%emt 0:00:30]} Bg7 {[%emt 0:00:00]} 5. c4 {[%emt 0:00:30]} dxc4 {[%emt 0:01:00]} 6. Qc2 {[%emt 0:01:30]} O-O {[%emt 0:01:30]} 7. Qxc4 {[%emt 0:03:30]} c6 {[%emt 0:03:30]} 8. O-O {[%emt 0:01:30]} Na6 {[%emt 0:02:30]} 9. Bf4 {[%emt 0:05:30]} Be6 {[%emt 0:02:30]} 10. Qc1 {[%emt 0:00:30]} Bd5 {[%emt 0:02:30]} 11. Be5 {[%emt 0:01:30]} Nb8 {[%emt 0:02:30]} 12. Nc3 {[%emt 0:01:30]} Nbd7 {[%emt 0:00:30]} 13. Bf4 {[%emt 0:02:30]} Rc8 {[%emt 0:03:30]} 14. Qb1 {[%emt 0:14:30]} Bc4 {[%emt 0:01:30]} 15. Re1 {[%emt 0:02:30]} Nd5 {[%emt 0:00:30]} 16. Bd2 {[%emt 0:01:30]} Nxc3 {[%emt 0:03:30]} 17. bxc3 {[%emt 0:00:30]} Ba6 {[%emt 0:07:30]} 18. Bh3 {[%emt 0:12:30]} Ra8 {[%emt 0:02:30]} 19. e4 {[%emt 0:01:30]} Nb6 {[%emt 0:11:30]} 20. e5 {[%emt 0:03:30]} Qd5 {[%emt 0:08:30]} 21. Bg2 {[%emt 0:03:30]} c5 22. Ng5 {[%emt 0:08:30]} Qc4 {[%emt 0:09:00]} 23. Qe4 {[%emt 0:09:30]} cxd4 {[%emt 0:05:30]} 24. cxd4 {[%emt 0:00:30]} Rfd8 {[%emt 0:05:30]} 25. Be3 {[%emt 0:01:30]} Nd5 {[%emt 0:01:30]} 26. Rec1 {[%emt 0:03:30]} Qd3 {[%emt 0:04:30]} 27. Rc5 {[%emt 0:13:25]} Nxe3 {[%emt 0:07:30]} 28. fxe3 {[%emt 0:00:59]} Qxe4 {[%emt 0:05:04]} 29. Nxe4 {[%emt 0:03:16]} f6 {[%emt 0:00:16]} 30. exf6 {[%emt 0:00:15]} exf6 {[%emt 0:00:14]} 31. Rc7 {[%emt 0:00:42]} Rac8 {[%emt 0:03:58]} 32. Rac1 {[%emt 0:02:08]} b6 {[%emt 0:01:39]} 33. Kf2 {[%emt 0:00:14]} h6 {[%emt 0:06:43]} 34. Nd2 {[%emt 0:02:11]} f5 {[%emt 0:03:57]} 35. Nb3 {[%emt 0:00:35]} Rxc7 {[%emt 0:00:40]} 36. Rxc7 {[%emt 0:00:06]} Rc8 {[%emt 0:00:10]} 37. Bd5+ {[%emt 0:03:38]} Kh7 {[%emt 0:00:06]} 38. Rxa7 {[%emt 0:01:19]} Rc2+ {[%emt 0:00:05]} 39. Ke1 {[%emt 0:03:37]} Rxa2 {[%emt 0:01:45]} 40. Bc4 {[%emt 0:01:47]} Bxc4 {[%emt 0:52:04]} 41. Rxa2 {[%emt 0:50:04]} Bxb3 {[%emt 0:00:06]} 42. Rb2 {[%emt 0:00:06]} Bd5 {[%emt 0:00:17]} 43. Rxb6 {[%emt 0:00:13]} Bf8 {[%emt 0:01:17]} 44. Kd2 {[%emt 0:00:00]} Kg7 {[%emt 0:00:00]} 45. Kd3 {[%emt 0:00:00]} Kf7 {[%emt 0:00:00]} 46. Kc3 {[%emt 0:00:00]} h5 {[%emt 0:00:00]} 47. Ra6 {[%emt 0:00:00]} Be7 {[%emt 0:00:00]} 48. Kd3 {[%emt 0:00:00]} Bf8 {[%emt 0:00:00]} 49. Rb6 {[%emt 0:00:00]} Be7 {[%emt 0:00:00]} 50. Ra6 {[%emt 0:00:00]} Bf8 {[%emt 0:00:00]} 51. Rb6 {[%emt 0:00:00]} 1/2-1/2

[Event "BL 2016-17"]
[Site "Germany"]
[Date "2017.02.19"]
[Round "8.6"]
[White "Cioara, Andrei-Nestor"]
[Black "Mager, Denis"]
[Result "1-0"]
[ECO "B50"]
[WhiteElo "2442"]
[BlackElo "2320"]
[Annotator "TA RC"]
[PlyCount "71"]
[EventDate "2017.??.??"]
[EventType "team-tourn"]
[EventCountry "GER"]
[SourceTitle "playchess.com"]
[Source "ChessBase"]
[SourceQuality "1"]
[WhiteTeam "SG Trier"]
[BlackTeam "Speyer-Schwegenheim"]
[TimeControl "40/6000+30:3000+30"]

1. e4 {[%emt 0:00:30]} c5 {[%emt 0:01:00]} 2. Nf3 {[%emt 0:00:00]} d6 {[%emt 0:00:00]} 3. c3 {[%emt 0:00:00]} Nf6 {[%emt 0:01:00]} 4. Be2 {[%emt 0:00:00]} g6 {[%emt 0:08:30]} 5. O-O {[%emt 0:00:00]} Bg7 {[%emt 0:00:30]} 6. Bb5+ {[%emt 0:00:30]} Bd7 {[%emt 0:02:30]} 7. Bxd7+ {[%emt 0:00:30]} Nbxd7 {[%emt 0:08:30]} 8. Re1 {[%emt 0:00:30]} O-O {[%emt 0:07:30]} 9. d4 {[%emt 0:00:30]} e5 {[%emt 0:07:30]} 10. Bg5 {[%emt 0:11:30]} h6 {[%emt 0:02:30]} 11. Bh4 {[%emt 0:08:30]} Qe7 {[%emt 0:05:30]} 12. Na3 {[%emt 0:12:30]} a6 {[%emt 0:08:30]} 13. Nc4 {[%emt 0:08:30]} b5 {[%emt 0:03:30]} 14. Ne3 {[%emt 0:08:30]} Qe6 {[%emt 0:04:30]} 15. dxc5 {[%emt 0:11:30]} dxc5 {[%emt 0:00:30]} 16. Qc2 {[%emt 0:00:30]} Nb6 {[%emt 0:03:30]} 17. Red1 {[%emt 0:05:30]} Rfd8 {[%emt 0:02:30]} 18. b3 {[%emt 0:00:30]} c4 {[%emt 0:03:30]} 19. Nd2 {[%emt 0:06:30]} Rd6 {[%emt 0:05:30]} 20. bxc4 {[%emt 0:01:30]} bxc4 $14 {[%emt 0:00:30]} 21. a4 {[%emt 0:13:10]} a5 {[%emt 0:00:30]} 22. Rdb1 {[%emt 0:00:13]} Rad8 {[%emt 0:11:30]} 23. Ndf1 {[%emt 0:00:07]} Rd3 {[%emt 0:09:50]} 24. f3 {[%emt 0:00:30]} R8d6 {[%emt 0:02:25]} 25. Rb5 {[%emt 0:01:46]} Nfd7 {[%emt 0:01:23]} 26. Rxa5 {[%emt 0:04:33]} f5 {[%emt 0:00:48]} 27. Rb5 {[%emt 0:01:48]} Nf6 {[%emt 0:02:56]} 28. Bxf6 {[%emt 0:04:48]} Bxf6 {[%emt 0:00:48]} 29. a5 {[%emt 0:00:04]} Nd7 {[%emt 0:01:03]} 30. Nd5 {[%emt 0:00:18]} Bg5 {[%emt 0:02:05]} 31. Nc7 {[%emt 0:04:40]} Qf7 {[%emt 0:00:44]} 32. a6 {[%emt 0:00:03]} Nb6 {[%emt 0:02:28]} 33. Rxb6 {[%emt 0:01:27]} Rxb6 {[%emt 0:01:45]} 34. a7 {[%emt 0:00:21]} Rd8 {[%emt 0:00:30]} 35. a8=Q {[%emt 0:00:22]} Rxa8 {[%emt 0:00:27]} 36. Rxa8+ {[%emt 0:00:11]} 1-0